Cogmind - Beta 11 X8 @@@ ROGUE MODE // 2021.12.14 @ 16:43:52 Player: thingamajigger Result: Self-destructed Performance ------------- Evolutions (2) 1000 Regions Visited (5) 1000 Robots Destroyed (14) 70 Value Destroyed (350) 350 Prototype IDs (0) 0 Alien Tech Used (0) 0 Bonus (0) 0 TOTAL SCORE: 2420 Bonus ------- None Cogmind --------- Core Integrity 503/550 Matter 300/300 Energy 160/160 System Corruption 0% Temperature Cool (0) Movement Rolling (115) Ox1 Location -8/Materials Parts ------- > --- POWER (1) -------- Light Nuclear Core > --- PROPULSION (2) --- Armored Huge Wheel > --- UTILITY (4) ------ Coolant Injector High-capacity Storage Unit Improved Targeting Computer > --- WEAPON (4) ------- Electrolaser > --- INVENTORY (20) --- Light Treads Compact Wheel Armored Huge Wheel Armored Huge Wheel Armored Huge Wheel Improved Heat Sink Coolant Injector Coolant Injector Coolant Injector High-capacity Storage Unit Improved Targeting Computer Particle Charger Small Laser Rocket Launcher Improved Datajack Peak State ------------ > --- POWER ------------ Ion Engine > --- PROPULSION ------- Armored Huge Wheel > --- UTILITY ---------- Coolant Injector High-capacity Storage Unit Structural Scanner Improved Targeting Computer > --- WEAPON ----------- Medium Laser Electrolaser Light Assault Rifle > --- INVENTORY -------- Ion Engine Light Nuclear Core Light Treads Compact Wheel Armored Huge Wheel Armored Huge Wheel Armored Huge Wheel Coolant Injector Coolant Injector Coolant Injector High-capacity Storage Unit Improved Targeting Computer Particle Charger Small Laser Rocket Launcher Improved Datajack [Rating: 27] Favorites ----------- Power Ion Engine Engine Ion Engine Power Core Light Nuclear Core Propulsion Light Treads Treads Light Treads Wheel Armored Huge Wheel Utility Structural Scanner Device Structural Scanner Storage Large Storage Unit Processor Improved Targeting Computer Weapon Medium Laser Energy Gun Medium Laser Ballistic Gun Light Assault Rifle Build | -11 -10 -10 -10 -9 -8 ------- Run | Scr Mat Min Exi Min Mat Slots Evolved 4 | . . . . . 4 Power . | . . . . . . Propulsion . | . . . . . . Utility 2 | . . . . . 2 Weapon 2 | . . . . . 2 Parts Attached 18 | 6 3 . 1 . 8 Power 3 | 1 . . . . 2 Engine 2 | 1 . . . . 1 Core 1 | . . . . . 1 Reactor . | . . . . . . Propulsion 3 | 2 . . . . 1 Treads 2 | 2 . . . . . Leg . | . . . . . . Wheel 1 | . . . . . 1 Hover . | . . . . . . Flight . | . . . . . . Utility 7 | 1 2 . 1 . 3 Device 2 | . 1 . . . 1 Storage 3 | 1 1 . 1 . . Processor 2 | . . . . . 2 Hackware . | . . . . . . Protection . | . . . . . . Artifact . | . . . . . . Weapon 5 | 2 1 . . . 2 Energy Gun 4 | 2 1 . . . 1 Energy Cannon . | . . . . . . Ballistic Gun 1 | . . . . . 1 Ballistic Cannon . | . . . . . . Launcher . | . . . . . . Special Weapon . | . . . . . . Impact Weapon . | . . . . . . Slashing Weapon . | . . . . . . Piercing Weapon . | . . . . . . Special Melee Weapon . | . . . . . . Unidentified Prototypes . | . . . . . . Parts Lost 7 | . 1 . . . 6 Power 2 | . . . . . 2 Propulsion . | . . . . . . Utility 1 | . . . . . 1 Weapon 4 | . 1 . . . 3 Highest Loss Streak 3 | . 1 . . . 3 Average Slot Usage (%) 95 | . 98 100 100 100 72 Engine 12 | . 14 14 14 14 8 Treads 23 | . 28 28 28 28 3 Wheel 1 | . . . . . 7 Device 14 | . 13 14 14 14 16 Storage 13 | . 14 14 14 14 9 Processor 1 | . . . . . 7 Energy Gun 25 | . 28 28 28 28 13 Ballistic Gun 1 | . . . . . 7 Naked Turns . | . . . . . . Heaviest Build 53 | 14 30 30 50 50 53 Greatest Support 40 | 40 40 40 40 40 40 Greatest Overweight (x) 1 | 1 . . 1 1 1 Average Overweight (x) . | . . . . 1 1 Largest Inventory Capacity 20 | 8 15 15 20 20 20 Average Capacity 15 | 6 13 15 15 20 20 Most Carried 20 | . 4 6 9 9 20 Average Carried 7 | . 2 5 6 9 17 Final Capacity 20 | 8 15 15 20 20 20 Final Carried 18 | . 4 6 9 9 18 Class Distribution -------------------- 91% | Mutant 5% | Skirmisher Dominant Class ---------------- Mutant | -10/Materials Mutant | -10/Mines Mutant | -10/Exiles Mutant | -9/Mines Mutant | -8/Materials Resources | -11 -10 -10 -10 -9 -8 ----------- Run | Scr Mat Min Exi Min Mat Matter Collected 380 | 198 92 . . . 90 Remotely . | . . . . . . Salvage Created 522 | . 188 . 112 . 222 Parts 28 | . 19 . 4 . 5 Haulers Intercepted . | . . . . . . Recyclers Shooed . | . . . . . . Parts Field Recycled . | . . . . . . Retrieved Matter . | . . . . . . Parts Self-Destructed . | . . . . . . Prevented . | . . . . . . Kills | -11 -10 -10 -10 -9 -8 ------- Run | Scr Mat Min Exi Min Mat Combat Hostiles Destroyed 11 | . 7 . . . 4 Guns 10 | . 7 . . . 3 Classes Destroyed 4 | . 3 . . . 1 Watcher 3 | . 2 . . . 1 Swarmer 6 | . 6 . . . . Grunt 4 | . 1 . . . 3 Hunter 1 | . . . . . 1 Best Kill Streak 4 | . 4 . . . 1 Combat Bots Only 3 | . 3 . . . 1 Max Kills in Single Turn 2 | . 2 . . . 1 Gunslinging 1 | . 1 . . . . Exploded . | . . . . . . Melee . | . . . . . . Uniques/NPCs Destroyed . | . . . . . . Combat | -11 -10 -10 -10 -9 -8 -------- Run | Scr Mat Min Exi Min Mat Damage Taken 743 | . 180 . . . 563 Core 80 | . 33 . . . 47 Absorbed by Shields . | . . . . . . Core Remaining (%) 93 | 100 . . . 86 . Volleys Fired 55 | . 16 1 9 . 29 Largest 3 | . 2 2 2 . 3 Hottest 133 | . 90 100 100 . 133 Shots Fired 105 | . 31 2 18 . 54 Gun 105 | . 31 2 18 . 54 Cannon . | . . . . . . Launcher . | . . . . . . Special . | . . . . . . Kinetic 18 | . . . . . 18 Thermal 72 | . 16 2 18 . 36 Explosive . | . . . . . . Electromagnetic 15 | . 15 . . . . Robot Hit Streak 11 | . 8 . 11 . 8 Robot Miss Streak 6 | . 2 2 3 . 6 Penetration Max . | . . . . . . Secondary Targets 1 | . 1 . . . . Max Gunslinging Chain 1 | . 1 . . . . Shots Hit Robots 62 | . 19 . 14 . 29 Core Hits 25 | . 10 . 2 . 13 Critical Kills . | . . . . . . Critical Parts Destroyed . | . . . . . . Critical Strikes 3 | . 1 . 1 . 1 Burn 3 | . 1 . 1 . 1 Melee Attacks . | . . . . . . Impact . | . . . . . . Slashing . | . . . . . . Piercing . | . . . . . . Sneak Attacks . | . . . . . . Combat Hostiles . | . . . . . . Follow-up Attacks . | . . . . . . Damage Inflicted 886 | . 276 . 183 . 427 Guns 851 | . 241 . 183 . 427 Cannons . | . . . . . . Explosions 35 | . 35 . . . . Melee . | . . . . . . Ramming . | . . . . . . Kinetic 53 | . . . . . 53 Thermal 667 | . 110 . 183 . 374 Explosive . | . . . . . . Electromagnetic 166 | . 166 . . . . Impact . | . . . . . . Slashing . | . . . . . . Piercing . | . . . . . . Highest Corruption . | . . . . . . Average Corruption . | . . . . . . Corruption Purged . | . . . . . . Overload Shots . | . . . . . . Overflow Damage . | . . . . . . Projectiles . | . . . . . . Explosions . | . . . . . . Melee . | . . . . . . Knockbacks . | . . . . . . Impact . | . . . . . . Kinetic . | . . . . . . Secondary . | . . . . . . Self-Inflicted Damage 24 | . 24 . . . . Shots 1 | . 1 . . . . Rammed . | . . . . . . Targets Rammed . | . . . . . . Kicked . | . . . . . . Crushed . | . . . . . . Highest Temperature 295 | . 220 39 295 . 196 Average Temperature 90 | . 73 20 142 . 82 Received Heat Transfer 246 | . 30 . . . 216 Siege Activations . | . . . . . . Robots Corrupted . | . . . . . . Combat Hostiles . | . . . . . . Parts Fried . | . . . . . . Impact Corruptions . | . . . . . . Robots Melted 2 | . . . 1 . 1 Combat Hostiles 1 | . . . . . 1 Parts Melted 4 | . . . 3 . 1 Heat Transferred 1850 | . 296 . 629 . 925 Parts Sabotaged . | . . . . . . Parts Stolen . | . . . . . . Parts Stripped . | . . . . . . Power Chain Reactions 1 | . 1 . . . . Missiles Intercepted . | . . . . . . Alert | -11 -10 -10 -10 -9 -8 ------- Run | Scr Mat Min Exi Min Mat Peak Influence 199 | . 199 17 . . 119 Initial 17 | . . 17 . . . Average 49 | . 89 17 . . 40 Maximum Alert Level . | . . . . . . Low Security (%) 100 | 100 100 100 . 100 100 Level 1 . | . . . . . . Level 2 . | . . . . . . Level 3 . | . . . . . . Level 4 . | . . . . . . Level 5 . | . . . . . . High Security . | . . . . . . Max Security . | . . . . . . Squads Dispatched 3 | . 1 . . . 2 Investigation 1 | . 1 . . . . Extermination . | . . . . . . Reinforcement 1 | . . . . . 1 Assault . | . . . . . . Garrison 1 | . . . . . 1 Intercept . | . . . . . . Construction Impeded . | . . . . . . Haulers Reinforced . | . . . . . . Active Scanning Responses . | . . . . . . Cargo Convoy Interrupts . | . . . . . . Stealth | -11 -10 -10 -10 -9 -8 --------- Run | Scr Mat Min Exi Min Mat Distress Signals 4 | . 1 . . . 3 Communications Jammed . | . . . . . . Distress Signals . | . . . . . . Times Spotted 24 | . 11 . . . 13 Peak Tracking Total 4 | . 4 . . . 4 Tactical Retreats 1 | . . . . . 1 Traps | -11 -10 -10 -10 -9 -8 ------- Run | Scr Mat Min Exi Min Mat Traps Triggered 2 | . 1 . . . 1 Indirectly . | . . . . . . Trap Hack Attempts . | . . . . . . Triggered . | . . . . . . Disarmed . | . . . . . . Reprogrammed . | . . . . . . Reused . | . . . . . . Traps Extracted . | . . . . . . Installed . | . . . . . . Triggered . | . . . . . . Machines | -11 -10 -10 -10 -9 -8 ---------- Run | Scr Mat Min Exi Min Mat Machines Disabled . | . . . . . . Max in Single Turn . | . . . . . . Machines Sabotaged . | . . . . . . Garrisons Compromised . | . . . . . . Overloaded Fab Kills . | . . . . . . Hacking | -11 -10 -10 -10 -9 -8 --------- Run | Scr Mat Min Exi Min Mat Machines Accessed 4 | . 1 . 2 . 1 Terminals 2 | . 1 . . . 1 Fabricators . | . . . . . . Repair Stations . | . . . . . . Recycling Units . | . . . . . . Scanalyzers . | . . . . . . Garrison Access . | . . . . . . Total Hacks 11 | . 2 . 2 . 7 Successful 5 | . . . 2 . 3 Failed 6 | . 2 . . . 4 Catastrophic . | . . . . . . Database Lockouts . | . . . . . . Manual 12 | . 2 . 4 . 6 Terminals 9 | . 2 . . . 7 Fabricators . | . . . . . . Repair Stations . | . . . . . . Recycling Units . | . . . . . . Scanalyzers . | . . . . . . Garrison Access . | . . . . . . Terminal Hacks 5 | . . . 2 . 3 Record 2 | . . . 2 . . Robot Analysis 3 | . . . . . 3 Fabricator Hacks . | . . . . . . Repair Station Hacks . | . . . . . . Recycling Unit Hacks . | . . . . . . Scanalyzer . | . . . . . . Garrison Access Hacks . | . . . . . . Unauthorized Hacks . | . . . . . . Terminals . | . . . . . . Fabricators . | . . . . . . Repair Stations . | . . . . . . Recycling Units . | . . . . . . Scanalyzers . | . . . . . . Garrison Access . | . . . . . . Data Cores Recovered . | . . . . . . Used . | . . . . . . Hacking Detections 2 | . 1 . . . 1 Full Trace Events . | . . . . . . Feedback Events . | . . . . . . Feedback Blocked . | . . . . . . Robot Schematics Acquired . | . . . . . . Robots Built . | . . . . . . Authchips . | . . . . . . Time . | . . . . . . Total Robot Build Rating . | . . . . . . Part Schematics Acquired . | . . . . . . Parts Built . | . . . . . . Authchips . | . . . . . . Time . | . . . . . . Total Part Build Rating . | . . . . . . Parts Repaired . | . . . . . . Time . | . . . . . . Parts Recycled . | . . . . . . Recycled Matter . | . . . . . . Retrieved Matter . | . . . . . . Retrieved Components . | . . . . . . Parts Scanalyzed . | . . . . . . Part Schematics Acquired . | . . . . . . Parts Damaged . | . . . . . . Bothacking | -11 -10 -10 -10 -9 -8 ------------ Run | Scr Mat Min Exi Min Mat Used RIF Installer . | . . . . . . Robots Hacked . | . . . . . . Non-combat . | . . . . . . Combat . | . . . . . . Robot Hacks Applied . | . . . . . . Relay Couplers Released . | . . . . . . Fabnet Peak Effective % . | . . . . . . Robots Rewired 2 | . . . 2 . . Allies Hacked . | . . . . . . Hacks Repelled . | . . . . . . Allies | -11 -10 -10 -10 -9 -8 -------- Run | Scr Mat Min Exi Min Mat Total Allies 2 | . . . 2 . . Largest Group 2 | . . . 2 2 2 Highest-Rated Group 29 | . . . 29 29 29 Highest-Rated Ally 21 | . . . 21 21 21 Total Orders . | . . . . . . Ally Attacks 1 | . . . . . 1 Total Damage 9 | . . . . . 9 Kills . | . . . . . . Allies Corrupted . | . . . . . . Allies Melted . | . . . . . . Intel | -11 -10 -10 -10 -9 -8 ------- Run | Scr Mat Min Exi Min Mat Robot Analysis Total 3 | . . . . . 3 Derelict Logs Recovered 1 | . . 1 . . . Drone Launches . | . . . . . . Drone Recoveries . | . . . . . . Exploration | -11 -10 -10 -10 -9 -8 ------------- Run | Scr Mat Min Exi Min Mat Turns Passed 2326 | 69 598 378 792 111 378 Spaces Moved 1302 | 43 333 234 453 47 192 Core 9 | 9 . . . . . Treads 1123 | 34 333 234 453 47 22 Legs . | . . . . . . Wheels 170 | . . . . . 170 Hover . | . . . . . . Flight . | . . . . . . Fastest Speed 50 | 50 160 160 160 240 115 Average Speed 159 | 142 160 160 165 240 129 Slowest Speed 240 | 160 160 160 240 240 240 Overloaded Moves . | . . . . . . Propulsion Burnouts . | . . . . . . Robots Hopped . | . . . . . . Cave-ins Triggered . | . . . . . . Exploration Rate (%) 42 | 4 53 69 89 14 24 Regions Visited 5 Branch Regions 3 Pre-discovered Areas 1 | . . . 1 . . Known Exits Taken . | . . . . . . Unknown Exits Taken 5 | 1 1 1 1 1 . Scrap Searched 1 | . . 1 . . . Spaces Dug . | . . . . . . Terrain Destroyed 6 | . 6 . . . . Melee . | . . . . . . Projectile . | . . . . . . AOE 6 | . 6 . . . . Terrain Rammed . | . . . . . . Walls Destroyed . | . . . . . . Machines Disabled . | . . . . . . Actions | -11 -10 -10 -10 -9 -8 --------- Run | Scr Mat Min Exi Min Mat Total 1456 | 48 367 236 480 46 279 Wait 37 | . 10 . . . 27 Move 1297 | 42 332 233 452 46 192 Hop . | . . . . . . Pick Up 26 | . 5 2 3 . 16 Fast Attach 9 | 6 1 . . . 2 Attach 7 | . 1 . . . 6 Detach 1 | . . . . . 1 Swap 2 | . 1 . 1 . . Drop 8 | . 1 . 1 . 6 Fire 55 | . 16 1 9 . 29 Melee . | . . . . . . Ram . | . . . . . . Kick . | . . . . . . Crush . | . . . . . . Escape Stasis . | . . . . . . Rewire 14 | . . . 14 . . Trap . | . . . . . . Miscellaneous . | . . . . . . Route ------- -11/Scrapyard -10/Materials (discovered 4 exits: [*Mat x2] / [*Min x2]) -10/Mines -10/Exiles (discovered 2 exits: [*Min x2]) -9/Mines -8/Materials History --------- Turn | Location | Event 16 | -11/Scrapyard | Discovered new exit (range 16) 70 | -11/Scrapyard | Entered Materials 197 | -10/Materials | Discovered new exit (range 13) 279 | -10/Materials | Discovered new exit (range 12) 280 | -10/Materials | Discovered new exit (range 13) 309 | -10/Materials | Build established: Mutant 345 | -10/Materials | Discovered new exit (range 16) 668 | -10/Materials | Entered Mines 686 | -10/Mines | Learned Materials security intel 738 | -10/Mines | Received a Rocket Launcher from a helpful Derelict 1038 | -10/Mines | Deemed a non-threat by the Exiles lab entrance 1038 | -10/Mines | Discovered new exit (range 6) 1046 | -10/Mines | Entered Exiles 1046 | -10/Exiles | Found Exiles lab destroyed 1067 | -10/Exiles | Discovered new exit (range 15) 1196 | -10/Exiles | Learned location of Zion (-7) 1819 | -10/Exiles | Discovered new exit (range 10) 1838 | -10/Exiles | Entered Mines 1838 | -9/Mines | Accompanied by 2 allies 1930 | -9/Mines | Discovered new exit (range 8) 1949 | -9/Mines | Entered Materials 1949 | -8/Materials | Accompanied by 2 allies 1949 | -8/Materials | Evolved 4 slots: Utility x2, Weapon x2 2276 | -8/Materials | Lost 3 parts (1p2w) 2311 | -8/Materials | Garrison activated, responded to threat 2327 | -8/Materials | Self-destructed Last Messages --------------- 02255_ Particle Gun melted. 02255_ U-05 Engineer repairs door. 02257_ K-01 Serf collects debris. 02263_ Critical hit (Burn: +37). 02264_ K-01 Serf collects debris. 02269_ R-06 Scavenger collects Com. Wheel. 02269_ O-16 Technician: "IFF HANDSHAKE FAILED. SECURING TERMINAL." 02271_ K-01 Serf collects debris. 02273_ R-06 Scavenger collects Lgt. Ion Engine. 02276_ ALERT: Hostiles spotted, dispatching reinforcements to Terminal M003. 02281_ K-01 Serf collects debris. 02283_ Ion Engine destroyed. 02296_ G-47 Trooper destroyed. 02299_ Acquired 10 matter. 02301_ Acquired Imp. Heat Sink. 02308_ W-25 Informer sends out distress signal. 02311_ W-25 Informer calls for garrison support. 02311_ ALERT: Activating Garrison Access M001. 02318_ Structural Scanner destroyed. Map ----- +----------------------------------------------------+ | ????????????## ######### | | ????????????## ######### | | ????????????## #! !!! #### | | ????????????## !# !! + | | ???????####### !# !! #### | | ???????#######!|%# #### | | ??????## # /% ##?? | | ??????## ! # %# #### | | ??????## # %########### | | ??????## # # ## | | ??????## """ # # """ =# | | ??????## """ # # """ # | | ??????## """ # # """ # | | ??????## # # ! # | | #?###### """ # # " " # | | # # """%# # "R" ! # | | # """ # """*+ / """ # | | # """ # # # # | | # """ #/##### ########## | | # """ # #### ######### | | # """ # ##???????? | | # g/o ##???????? | | # g # ##???????? | | # ### ???? | | # "" ### ######???? | | # =@T" ### ######???? | | # "" ### # ???????? | | # ### # ???????? | | ########## # ???????? | | ????????# + ???????? | | ??????????? # ???????? | | ?????????? # ???????? | | ??????????##### ####???????? | | ??????????##### ####???????? | | ???????????????+##?????????? | | ???????????????????????????? | | ???????????????????????????? | | ???????????????????????????? | | ???????????????????????????? | | ???????????????????????????? | | ???????????????????????????? | | ???????????????????????????? | | ???????????????????????????? | | ???????????????????????????? | | ???????????????????????????? | | ???????????????????????????? | | ???????????????????????????? | | ???????????????????????????? | | ???????????????????????????? | | ???????????????????????????? | +----------------------------------------------------+ Best States ------------- Heat Dissipation 31 Coolant Potential 65 Energy Generation 14 Energy Capacity 250 Matter Stores 300 Matter Capacity 300 Sight Range 18 Terrain Scan Density 10 Evasion (%) 40 Targeting Accuracy 6 Recoil Reduction 2 Item Schematics ----------------- None Robot Schematics ------------------ None Fabricated ------------ Nothing Alien Tech Used ----------------- None Achievements -------------- None Challenges ------------ None Game ------ Seed PrecisionMakeshiftSuite Manual? 0 Play Time 00:10:41 Cumulative 130.4 hours Start 2021.12.14 @ 09:59:09 End 2021.12.14 @ 16:43:52 Sessions 2 Manual Loads 0 Difficulty Rogue Special Mode None Game No. 223 Rogue 206 Adventurer 4 Explorer 13 Win Type - Total 8 Types 6/0/0/2/0/0/0/0/0 Lore% 63 Gallery% 82 Achievement% 68 Wizard Run 0 Options --------- ASCII 0 Keyboard 1 Movement Numpad Keybinds 0 Fullscreen 1 Font 18/SmallcapsGlow Map View 76x50 Tactical HUD 1 Map Filters NONE Filters NONE Steam 1 RUN: f2437e9b-d2f0-4d48-b8a8-5e079229cd35